[Event "Titled Tuesday Blitz August 09 Early 2022"]
[White "Zamorano, Jorge"]
[Black "Locci, Damiano"]
[WhiteFideId "173770"]
[BlackFideId "819751"]
[WhiteElo "2331"]
[BlackElo "2396"]
[Result "0-1"]
[Round "02"]
[TimeControl "180+1"]
[Date "2022.08.09"]
[WhiteClock "0:00:02"]
[BlackClock "0:00:06"]

1. d4 {[%clk 0:01:01]}  d5 {[%clk 0:02:59]} 2. c4 {[%clk 0:00:59]}  e6 {[%clk 0:02:59]} 3. Nc3 {[%clk 0:01:00]}  a6 {[%clk 0:02:59]} 4. cxd5 {[%clk 0:00:58]}  exd5 {[%clk 0:02:59]} 5. Nf3 {[%clk 0:00:59]}  c6 {[%clk 0:02:58]} 6. Bf4 {[%clk 0:00:53]}  Bd6 {[%clk 0:02:58]} 7. Bg3 {[%clk 0:00:50]}  Ne7 {[%clk 0:02:58]} 8. e3 {[%clk 0:00:51]}  Bf5 {[%clk 0:02:57]} 9. Bd3 {[%clk 0:00:44]}  O-O {[%clk 0:02:57]} 10. O-O {[%clk 0:00:44]}  Qc7 {[%clk 0:02:49]} 11. Rc1 {[%clk 0:00:42]}  Bxd3 {[%clk 0:02:43]} 12. Qxd3 {[%clk 0:00:42]}  Nd7 {[%clk 0:02:37]} 13. Bh4 {[%clk 0:00:18]}  Qb6 {[%clk 0:02:18]} 14. Rc2 {[%clk 0:00:17]}  Ng6 {[%clk 0:02:13]} 15. Bg3 {[%clk 0:00:17]}  Bxg3 {[%clk 0:02:10]} 16. hxg3 {[%clk 0:00:18]}  Rad8 {[%clk 0:02:05]} 17. Na4 {[%clk 0:00:18]}  Qb5 {[%clk 0:01:53]} 18. Qb3 {[%clk 0:00:15]}  Qxb3 {[%clk 0:01:51]} 19. axb3 {[%clk 0:00:15]}  Rfe8 {[%clk 0:01:49]} 20. b4 {[%clk 0:00:15]}  Ne7 {[%clk 0:01:43]} 21. Ra1 {[%clk 0:00:15]}  Nc8 {[%clk 0:01:42]} 22. Ne1 {[%clk 0:00:15]}  Nd6 {[%clk 0:01:42]} 23. Nd3 {[%clk 0:00:15]}  Nb5 {[%clk 0:01:30]} 24. Kf1 {[%clk 0:00:16]}  g6 {[%clk 0:01:22]} 25. Nac5 {[%clk 0:00:14]}  Nxc5 {[%clk 0:01:19]} 26. Nxc5 {[%clk 0:00:15]}  Re7 {[%clk 0:01:19]} 27. g4 {[%clk 0:00:15]}  Kg7 {[%clk 0:01:14]} 28. g3 {[%clk 0:00:16]}  Rde8 {[%clk 0:01:05]} 29. Kg2 {[%clk 0:00:16]}  h6 {[%clk 0:01:00]} 30. Rh1 {[%clk 0:00:16]}  Nd6 {[%clk 0:00:49]} 31. Rcc1 {[%clk 0:00:17]}  Nc4 {[%clk 0:00:46]} 32. b3 {[%clk 0:00:15]}  Nd6 {[%clk 0:00:43]} 33. Rh4 {[%clk 0:00:14]}  Ne4 {[%clk 0:00:27]} 34. Nd3 {[%clk 0:00:12]}  g5 {[%clk 0:00:19]} 35. Rh2 {[%clk 0:00:11]}  f6 {[%clk 0:00:17]} 36. Rch1 {[%clk 0:00:11]}  Rh8 {[%clk 0:00:17]} 37. Ra1 {[%clk 0:00:09]}  Nd2 {[%clk 0:00:17]} 38. Ra3 {[%clk 0:00:08]}  Nb1 {[%clk 0:00:16]} 39. Ra2 {[%clk 0:00:07]}  Nc3 {[%clk 0:00:16]} 40. Rc2 {[%clk 0:00:08]}  Nb5 {[%clk 0:00:15]} 41. Rh1 {[%clk 0:00:08]}  Nd6 {[%clk 0:00:15]} 42. Rhc1 {[%clk 0:00:07]}  Nb5 {[%clk 0:00:15]} 43. Nc5 {[%clk 0:00:07]}  Rhe8 {[%clk 0:00:14]} 44. Kf3 {[%clk 0:00:07]}  Na3 {[%clk 0:00:13]} 45. Ra2 {[%clk 0:00:07]}  Nb5 {[%clk 0:00:13]} 46. Rh1 {[%clk 0:00:07]}  Nd6 {[%clk 0:00:13]} 47. Rh2 {[%clk 0:00:07]}  Ne4 {[%clk 0:00:12]} 48. Ra1 {[%clk 0:00:07]}  Nd6 {[%clk 0:00:11]} 49. Rah1 {[%clk 0:00:06]}  Rh8 {[%clk 0:00:12]} 50. Ke2 {[%clk 0:00:06]}  Nb5 {[%clk 0:00:12]} 51. Kd3 {[%clk 0:00:07]}  Nd6 {[%clk 0:00:11]} 52. f3 {[%clk 0:00:05]}  Rhe8 {[%clk 0:00:09]} 53. Re1 {[%clk 0:00:06]}  Nb5 {[%clk 0:00:08]} 54. Rhe2 {[%clk 0:00:06]}  Nd6 {[%clk 0:00:07]} 55. e4 {[%clk 0:00:05]}  dxe4+ {[%clk 0:00:07]} 56. fxe4 {[%clk 0:00:06]}  Nb5 {[%clk 0:00:08]} 57. d5 {[%clk 0:00:04]}  Rd8 {[%clk 0:00:07]} 58. Kc4 {[%clk 0:00:04]}  cxd5+ {[%clk 0:00:06]} 59. exd5 {[%clk 0:00:04]}  Rc7 {[%clk 0:00:04]} 60. Re7+ {[%clk 0:00:03]}  Rxe7 {[%clk 0:00:04]} 61. Rxe7+ {[%clk 0:00:03]}  Kg6 {[%clk 0:00:05]} 62. Rxb7 {[%clk 0:00:04]}  Nd6+ {[%clk 0:00:05]} 63. Kd4 {[%clk 0:00:04]}  Nxb7 {[%clk 0:00:06]} 64. Nxb7 {[%clk 0:00:05]}  Rb8 {[%clk 0:00:06]} 65. Nc5 {[%clk 0:00:01]}  Rxb4+ {[%clk 0:00:07]} 66. Kc3 {[%clk 0:00:02]}  Rxg4 {[%clk 0:00:07]} 67. d6 {[%clk 0:00:03]}  Rxg3+ {[%clk 0:00:07]} 68. Kc4 {[%clk 0:00:03]}  Rg4+ {[%clk 0:00:05]} 69. Kd5 {[%clk 0:00:03]}  Rg1 {[%clk 0:00:05]} 70. d7 {[%clk 0:00:04]}  Rd1+ {[%clk 0:00:06]} 71. Ke6 {[%clk 0:00:04]}  g4 {[%clk 0:00:04]} 72. Nb7 {[%clk 0:00:04]}  Rxd7 {[%clk 0:00:04]} 73. Kxd7 {[%clk 0:00:04]}  g3 {[%clk 0:00:05]} 74. Nc5 {[%clk 0:00:02]}  g2 {[%clk 0:00:06]} 0-1


[Site "https://www.chess.com"]

[Event "Titled Tuesday Blitz August 09 Early 2022"]
[White "Ziatdinov, Raset"]
[Black "Bashirli, Nail"]
[WhiteFideId "2015323"]
[BlackFideId "13406809"]
[WhiteElo "2220"]
[BlackElo "2333"]
[Result "0-1"]
[Round "02"]
[TimeControl "180+1"]
[Date "2022.08.09"]
[WhiteClock "0:00:02"]
[BlackClock "0:00:40"]

1. e4 {[%clk 0:03:00]}  c5 {[%clk 0:02:54]} 2. Nf3 {[%clk 0:03:00]}  d6 {[%clk 0:02:48]} 3. d4 {[%clk 0:03:01]}  cxd4 {[%clk 0:02:49]} 4. Nxd4 {[%clk 0:03:01]}  Nf6 {[%clk 0:02:49]} 5. Nc3 {[%clk 0:03:02]}  Nc6 {[%clk 0:02:49]} 6. Bc4 {[%clk 0:03:00]}  e6 {[%clk 0:02:50]} 7. Be3 {[%clk 0:02:59]}  a6 {[%clk 0:02:49]} 8. a4 {[%clk 0:02:59]}  Bd7 {[%clk 0:02:49]} 9. O-O {[%clk 0:02:59]}  Be7 {[%clk 0:02:37]} 10. f4 {[%clk 0:02:58]}  O-O {[%clk 0:02:37]} 11. f5 {[%clk 0:02:49]}  Nxd4 {[%clk 0:01:39]} 12. Bxd4 {[%clk 0:02:44]}  Rc8 {[%clk 0:01:40]} 13. Bb3 {[%clk 0:02:43]}  Qc7 {[%clk 0:01:38]} 14. Qe2 {[%clk 0:02:30]}  e5 {[%clk 0:01:37]} 15. Be3 {[%clk 0:02:27]}  Bc6 {[%clk 0:01:38]} 16. Bg5 {[%clk 0:02:25]}  d5 {[%clk 0:01:27]} 17. Bxf6 {[%clk 0:02:15]}  Bxf6 {[%clk 0:01:28]} 18. Bxd5 {[%clk 0:02:12]}  Qb6+ {[%clk 0:01:26]} 19. Kh1 {[%clk 0:02:08]}  Qxb2 {[%clk 0:01:26]} 20. Qd3 {[%clk 0:01:48]}  Rfd8 {[%clk 0:01:24]} 21. Rfb1 {[%clk 0:01:40]}  Qxc3 {[%clk 0:01:15]} 22. Qxc3 {[%clk 0:01:38]}  Bxd5 {[%clk 0:01:16]} 23. Qe3 {[%clk 0:01:33]}  Bc6 {[%clk 0:01:15]} 24. c4 {[%clk 0:01:33]}  Rd4 {[%clk 0:01:14]} 25. Rb6 {[%clk 0:01:15]}  h5 {[%clk 0:01:12]} 26. Rc1 {[%clk 0:01:13]}  Bxe4 {[%clk 0:01:07]} 27. h3 {[%clk 0:00:41]}  h4 {[%clk 0:00:55]} 28. Qe2 {[%clk 0:00:33]}  Bc6 {[%clk 0:00:54]} 29. a5 {[%clk 0:00:33]}  Rcd8 {[%clk 0:00:54]} 30. Rb2 {[%clk 0:00:31]}  Bg5 {[%clk 0:00:51]} 31. Rf1 {[%clk 0:00:30]}  f6 {[%clk 0:00:49]} 32. Rc2 {[%clk 0:00:26]}  e4 {[%clk 0:00:48]} 33. c5 {[%clk 0:00:24]}  e3 {[%clk 0:00:47]} 34. Rfc1 {[%clk 0:00:17]}  Bb5 {[%clk 0:00:46]} 35. Qf3 {[%clk 0:00:15]}  Bc6 {[%clk 0:00:46]} 36. Qe2 {[%clk 0:00:15]}  Kf8 {[%clk 0:00:45]} 37. Qh5 {[%clk 0:00:11]}  Be4 {[%clk 0:00:39]} 38. Qh8+ {[%clk 0:00:09]}  Kf7 {[%clk 0:00:39]} 39. Qh5+ {[%clk 0:00:09]}  Kg8 {[%clk 0:00:40]} 40. Re2 {[%clk 0:00:08]}  Rd2 {[%clk 0:00:39]} 41. Rce1 {[%clk 0:00:09]}  Rxe2 {[%clk 0:00:39]} 42. Rxe2 {[%clk 0:00:09]}  Rd1+ {[%clk 0:00:39]} 43. Kh2 {[%clk 0:00:09]}  Bf4+ {[%clk 0:00:40]} 44. g3 {[%clk 0:00:02]}  hxg3# {[%clk 0:00:40]} 0-1


[Site "https://www.chess.com"]

[Event "Titled Tuesday Blitz August 09 Early 2022"]
[White "Aaditya Dhingra"]
[Black "Gatterer, Florian"]
[WhiteFideId "25678191"]
[BlackFideId "811688"]
[WhiteElo "1849"]
[BlackElo "2218"]
[Result "1-0"]
[Round "03"]
[TimeControl "180+1"]
[Date "2022.08.09"]
[WhiteClock "0:00:24"]
[BlackClock "0:00:01"]

1. d4 {[%clk 0:03:00]}  d5 {[%clk 0:02:59]} 2. Nf3 {[%clk 0:02:59]}  Nf6 {[%clk 0:02:58]} 3. c4 {[%clk 0:02:59]}  e6 {[%clk 0:02:59]} 4. Nc3 {[%clk 0:02:59]}  c5 {[%clk 0:02:56]} 5. cxd5 {[%clk 0:02:57]}  Nxd5 {[%clk 0:02:56]} 6. e4 {[%clk 0:02:56]}  Nxc3 {[%clk 0:02:56]} 7. bxc3 {[%clk 0:02:56]}  cxd4 {[%clk 0:02:56]} 8. cxd4 {[%clk 0:02:56]}  Bb4+ {[%clk 0:02:56]} 9. Bd2 {[%clk 0:02:56]}  Bxd2+ {[%clk 0:02:56]} 10. Qxd2 {[%clk 0:02:57]}  O-O {[%clk 0:02:55]} 11. Bd3 {[%clk 0:02:56]}  b6 {[%clk 0:02:51]} 12. O-O {[%clk 0:02:55]}  Bb7 {[%clk 0:02:51]} 13. Rfc1 {[%clk 0:02:52]}  Nd7 {[%clk 0:02:47]} 14. Qf4 {[%clk 0:02:43]}  Rc8 {[%clk 0:02:44]} 15. e5 {[%clk 0:02:39]}  g6 {[%clk 0:02:23]} 16. Ng5 {[%clk 0:02:24]}  Qe7 {[%clk 0:02:12]} 17. Be4 {[%clk 0:02:16]}  Bxe4 {[%clk 0:01:23]} 18. Nxe4 {[%clk 0:02:14]}  Kg7 {[%clk 0:01:22]} 19. Nd6 {[%clk 0:02:09]}  Rxc1+ {[%clk 0:01:19]} 20. Rxc1 {[%clk 0:02:10]}  Nb8 {[%clk 0:01:08]} 21. g4 {[%clk 0:01:56]}  f5 {[%clk 0:01:07]} 22. exf6+ {[%clk 0:01:47]}  Rxf6 {[%clk 0:00:55]} 23. Qe5 {[%clk 0:01:23]}  Nd7 {[%clk 0:00:53]} 24. Qg3 {[%clk 0:01:23]}  e5 {[%clk 0:00:42]} 25. Ne4 {[%clk 0:01:20]}  Rf4 {[%clk 0:00:35]} 26. f3 {[%clk 0:01:12]}  Qa3 {[%clk 0:00:14]} 27. Rc7 {[%clk 0:01:06]}  Qe3+ {[%clk 0:00:13]} 28. Qf2 {[%clk 0:00:57]}  Qxf2+ {[%clk 0:00:10]} 29. Kxf2 {[%clk 0:00:56]}  Rf7 {[%clk 0:00:10]} 30. d5 {[%clk 0:00:54]}  Nc5 {[%clk 0:00:09]} 31. Rxf7+ {[%clk 0:00:47]}  Kxf7 {[%clk 0:00:10]} 32. Ng5+ {[%clk 0:00:41]}  Ke7 {[%clk 0:00:09]} 33. Nxh7 {[%clk 0:00:38]}  Kd6 {[%clk 0:00:07]} 34. Nf6 {[%clk 0:00:38]}  a5 {[%clk 0:00:02]} 35. Ke3 {[%clk 0:00:36]}  b5 {[%clk 0:00:02]} 36. h4 {[%clk 0:00:35]}  b4 {[%clk 0:00:02]} 37. Kd2 {[%clk 0:00:30]}  a4 {[%clk 0:00:02]} 38. Kc2 {[%clk 0:00:28]}  Ke7 {[%clk 0:00:01]} 39. Ne4 {[%clk 0:00:27]}  Nd7 {[%clk 0:00:01]} 40. Kd3 {[%clk 0:00:25]}  Kf7 {[%clk 0:00:01]} 41. Kc4 {[%clk 0:00:25]}  b3 {[%clk 0:00:01]} 42. axb3 {[%clk 0:00:24]} 1-0


[Site "https://www.chess.com"]

[Event "Titled Tuesday Blitz August 09 Early 2022"]
[White "Abdrlauf, Elham"]
[Black "Bekturov, Tamerlan"]
[WhiteFideId "1533533"]
[BlackFideId "13710184"]
[WhiteElo "2836"]
[BlackElo "2660"]
[Result "1-0"]
[Round "03"]
[TimeControl "180+1"]
[Date "2022.08.09"]
[WhiteClock "0:00:04"]
[BlackClock "0:00:06"]

1. e4 {[%clk 0:03:00]}  e5 {[%clk 0:02:54]} 2. Nc3 {[%clk 0:03:00]}  Nf6 {[%clk 0:02:52]} 3. Bc4 {[%clk 0:02:59]}  Nc6 {[%clk 0:02:48]} 4. d3 {[%clk 0:03:00]}  Na5 {[%clk 0:02:47]} 5. Qf3 {[%clk 0:02:58]}  c6 {[%clk 0:02:38]} 6. a4 {[%clk 0:02:58]}  Nxc4 {[%clk 0:02:29]} 7. dxc4 {[%clk 0:02:59]}  d6 {[%clk 0:02:26]} 8. Nge2 {[%clk 0:02:59]}  Be7 {[%clk 0:02:25]} 9. O-O {[%clk 0:02:58]}  O-O {[%clk 0:02:26]} 10. h3 {[%clk 0:02:54]}  Nd7 {[%clk 0:02:20]} 11. b3 {[%clk 0:02:54]}  Nc5 {[%clk 0:02:20]} 12. Be3 {[%clk 0:02:43]}  Qa5 {[%clk 0:02:11]} 13. Rab1 {[%clk 0:02:31]}  Ne6 {[%clk 0:01:57]} 14. Rfd1 {[%clk 0:02:27]}  g6 {[%clk 0:01:53]} 15. Bh6 {[%clk 0:02:27]}  Ng7 {[%clk 0:01:52]} 16. Ng3 {[%clk 0:02:14]}  Qc7 {[%clk 0:01:46]} 17. Qe3 {[%clk 0:01:53]}  f5 {[%clk 0:01:23]} 18. exf5 {[%clk 0:01:50]}  gxf5 {[%clk 0:01:23]} 19. Bxg7 {[%clk 0:01:09]}  Kxg7 {[%clk 0:01:21]} 20. Nh5+ {[%clk 0:01:10]}  Kh8 {[%clk 0:01:08]} 21. Qh6 {[%clk 0:01:08]}  Rf7 {[%clk 0:01:02]} 22. f4 {[%clk 0:01:00]}  e4 {[%clk 0:00:52]} 23. Ne2 {[%clk 0:00:59]}  Bd7 {[%clk 0:00:48]} 24. Nd4 {[%clk 0:00:41]}  Rg8 {[%clk 0:00:47]} 25. Ne6 {[%clk 0:00:41]}  Qc8 {[%clk 0:00:34]} 26. Ng5 {[%clk 0:00:34]}  Bxg5 {[%clk 0:00:32]} 27. Qxd6 {[%clk 0:00:35]}  Be7 {[%clk 0:00:26]} 28. Qe5+ {[%clk 0:00:32]}  Rgg7 {[%clk 0:00:24]} 29. Rd2 {[%clk 0:00:22]}  Kg8 {[%clk 0:00:18]} 30. Nxg7 {[%clk 0:00:18]}  Bf6 {[%clk 0:00:16]} 31. Qc5 {[%clk 0:00:10]}  Rxg7 {[%clk 0:00:15]} 32. Rbd1 {[%clk 0:00:10]}  Bd8 {[%clk 0:00:10]} 33. Qxa7 {[%clk 0:00:07]}  Qc7 {[%clk 0:00:08]} 34. Qe3 {[%clk 0:00:06]}  Qb6 {[%clk 0:00:06]} 35. c5 {[%clk 0:00:07]}  Qc7 {[%clk 0:00:07]} 36. Rd6 {[%clk 0:00:07]}  Bh4 {[%clk 0:00:05]} 37. Qd4 {[%clk 0:00:07]}  Be8 {[%clk 0:00:03]} 38. Re6 {[%clk 0:00:04]}  Re7 {[%clk 0:00:03]} 39. Qd6 {[%clk 0:00:02]}  Qxd6 {[%clk 0:00:04]} 40. Rdxd6 {[%clk 0:00:02]}  Rxe6 {[%clk 0:00:04]} 41. Rxe6 {[%clk 0:00:03]}  Kf7 {[%clk 0:00:05]} 42. Rh6 {[%clk 0:00:03]}  Bf6 {[%clk 0:00:05]} 43. Rxh7+ {[%clk 0:00:03]}  Ke6 {[%clk 0:00:05]} 44. Rxb7 {[%clk 0:00:03]}  Bd4+ {[%clk 0:00:06]} 45. Kf1 {[%clk 0:00:02]}  Bxc5 {[%clk 0:00:07]} 46. a5 {[%clk 0:00:03]}  Bd7 {[%clk 0:00:04]} 47. Rb8 {[%clk 0:00:03]}  Ba7 {[%clk 0:00:04]} 48. Rb7 {[%clk 0:00:03]}  Bc5 {[%clk 0:00:04]} 49. b4 {[%clk 0:00:03]}  Bd4 {[%clk 0:00:03]} 50. c3 {[%clk 0:00:02]}  Be3 {[%clk 0:00:03]} 51. Ke2 {[%clk 0:00:02]}  Bg1 {[%clk 0:00:04]} 52. Kf1 {[%clk 0:00:03]}  Bc8 {[%clk 0:00:04]} 53. Rc7 {[%clk 0:00:01]}  Kd6 {[%clk 0:00:03]} 54. Rxc8 {[%clk 0:00:01]}  Be3 {[%clk 0:00:04]} 55. Rd8+ {[%clk 0:00:02]}  Kc7 {[%clk 0:00:04]} 56. Rf8 {[%clk 0:00:03]}  Bxf4 {[%clk 0:00:05]} 57. Rxf5 {[%clk 0:00:03]}  Bh2 {[%clk 0:00:06]} 58. Ke2 {[%clk 0:00:03]}  Kb7 {[%clk 0:00:06]} 59. Ke3 {[%clk 0:00:04]} 1-0


[Site "https://www.chess.com"]

[Event "Titled Tuesday Blitz August 09 Early 2022"]
[White "Adury, Anant"]
[Black "Stegariu, Vlad-Ionut"]
[WhiteFideId "30964687"]
[BlackFideId "1217860"]
[WhiteElo "2324"]
[BlackElo "2253"]
[Result "1-0"]
[Round "03"]
[TimeControl "180+1"]
[Date "2022.08.09"]
[WhiteClock "0:02:30"]
[BlackClock "0:02:38"]

1. d4 {[%clk 0:03:00]}  d5 {[%clk 0:02:59]} 2. c4 {[%clk 0:03:01]}  e6 {[%clk 0:02:57]} 3. Nc3 {[%clk 0:03:01]}  Nf6 {[%clk 0:02:53]} 4. Bg5 {[%clk 0:03:01]}  Be7 {[%clk 0:02:52]} 5. cxd5 {[%clk 0:03:00]}  Nxd5 {[%clk 0:02:52]} 6. Bxe7 {[%clk 0:02:56]}  Qxe7 {[%clk 0:02:51]} 7. e4 {[%clk 0:02:56]}  Nxc3 {[%clk 0:02:51]} 8. bxc3 {[%clk 0:02:57]}  c5 {[%clk 0:02:51]} 9. Nf3 {[%clk 0:02:57]}  cxd4 {[%clk 0:02:51]} 10. cxd4 {[%clk 0:02:58]}  b6 {[%clk 0:02:50]} 11. Bb5+ {[%clk 0:02:56]}  Bd7 {[%clk 0:02:50]} 12. Bd3 {[%clk 0:02:56]}  O-O {[%clk 0:02:50]} 13. O-O {[%clk 0:02:55]}  Bc6 {[%clk 0:02:50]} 14. d5 {[%clk 0:02:48]}  exd5 {[%clk 0:02:43]} 15. exd5 {[%clk 0:02:47]}  Bxd5 {[%clk 0:02:43]} 16. Bxh7+ {[%clk 0:02:47]}  Kxh7 {[%clk 0:02:44]} 17. Qxd5 {[%clk 0:02:47]}  Nd7 {[%clk 0:02:44]} 18. Rfe1 {[%clk 0:02:33]}  Qd8 {[%clk 0:02:38]} 19. Rad1 {[%clk 0:02:29]}  Nf6 {[%clk 0:02:38]} 20. Qf5+ {[%clk 0:02:29]}  g6 {[%clk 0:02:38]} 21. Qh3+ {[%clk 0:02:30]} 1-0


[Site "https://www.chess.com"]

[Event "Titled Tuesday Blitz August 09 Early 2022"]
[White "Ajay, Karthikeyan"]
[Black "Oye-Stromberg, Alexander"]
[WhiteFideId "35011685"]
[BlackFideId "1525999"]
[WhiteElo "2168"]
[BlackElo "1972"]
[Result "0-1"]
[Round "03"]
[TimeControl "180+1"]
[Date "2022.08.09"]
[WhiteClock "0:00:09"]
[BlackClock "0:00:35"]

1. b3 {[%clk 0:03:00]}  e5 {[%clk 0:02:58]} 2. Bb2 {[%clk 0:03:01]}  Nc6 {[%clk 0:02:58]} 3. e3 {[%clk 0:03:02]}  d5 {[%clk 0:02:56]} 4. Bb5 {[%clk 0:03:02]}  Ne7 {[%clk 0:02:54]} 5. Bxe5 {[%clk 0:03:00]}  a6 {[%clk 0:02:54]} 6. Bxc6+ {[%clk 0:03:00]}  Nxc6 {[%clk 0:02:55]} 7. Bb2 {[%clk 0:03:01]}  Qg5 {[%clk 0:02:55]} 8. g3 {[%clk 0:02:57]}  Bg4 {[%clk 0:02:49]} 9. f3 {[%clk 0:02:44]}  Be6 {[%clk 0:02:49]} 10. f4 {[%clk 0:02:41]}  Qg6 {[%clk 0:02:48]} 11. Nf3 {[%clk 0:02:40]}  O-O-O {[%clk 0:02:45]} 12. O-O {[%clk 0:02:40]}  h5 {[%clk 0:02:45]} 13. Nh4 {[%clk 0:02:33]}  Qh6 {[%clk 0:02:40]} 14. f5 {[%clk 0:02:28]}  Bd7 {[%clk 0:02:40]} 15. Nc3 {[%clk 0:02:25]}  d4 {[%clk 0:01:58]} 16. exd4 {[%clk 0:01:19]}  Nxd4 {[%clk 0:01:57]} 17. Ne2 {[%clk 0:01:20]}  Nxe2+ {[%clk 0:01:46]} 18. Qxe2 {[%clk 0:01:21]}  Bb5 {[%clk 0:01:22]} 19. c4 {[%clk 0:01:20]}  Bc5+ {[%clk 0:01:23]} 20. d4 {[%clk 0:01:19]}  Rxd4 {[%clk 0:01:20]} 21. Bxd4 {[%clk 0:01:15]}  Bxd4+ {[%clk 0:01:21]} 22. Kg2 {[%clk 0:01:15]}  Bc6+ {[%clk 0:01:17]} 23. Kh3 {[%clk 0:01:15]}  Bxa1 {[%clk 0:01:10]} 24. Rxa1 {[%clk 0:01:16]}  g5 {[%clk 0:01:03]} 25. fxg6 {[%clk 0:01:12]}  fxg6 {[%clk 0:01:04]} 26. Rd1 {[%clk 0:01:00]}  g5 {[%clk 0:01:03]} 27. Nf3 {[%clk 0:00:18]}  Bxf3 {[%clk 0:00:43]} 28. Qe5 {[%clk 0:00:15]}  g4+ {[%clk 0:00:43]} 29. Kh4 {[%clk 0:00:15]}  Bxd1 {[%clk 0:00:43]} 30. Qxh8+ {[%clk 0:00:11]}  Qxh8 {[%clk 0:00:43]} 31. Kg5 {[%clk 0:00:09]}  Qg7+ {[%clk 0:00:42]} 32. Kh4 {[%clk 0:00:09]}  Bc2 {[%clk 0:00:38]} 33. c5 {[%clk 0:00:09]}  Qf6+ {[%clk 0:00:37]} 34. Kxh5 {[%clk 0:00:09]}  Qg6+ {[%clk 0:00:35]} 35. Kh4 {[%clk 0:00:09]}  Bf5 {[%clk 0:00:35]} 36. h3 {[%clk 0:00:09]}  Qh6# {[%clk 0:00:35]} 0-1


[Site "https://www.chess.com"]

[Event "Titled Tuesday Blitz August 09 Early 2022"]
[White "Antonio, Jorge Carlos"]
[Black "Ianov, Viktor"]
[WhiteFideId "113190"]
[BlackFideId "14102730"]
[WhiteElo "2247"]
[BlackElo "2152"]
[Result "0-1"]
[Round "03"]
[TimeControl "180+1"]
[Date "2022.08.09"]
[WhiteClock "0:00:45"]
[BlackClock "0:01:30"]

1. d4 {[%clk 0:03:00]}  d6 {[%clk 0:02:58]} 2. Nf3 {[%clk 0:03:00]}  g6 {[%clk 0:02:56]} 3. c4 {[%clk 0:03:00]}  Bg7 {[%clk 0:02:56]} 4. e4 {[%clk 0:02:59]}  Bg4 {[%clk 0:02:53]} 5. Nc3 {[%clk 0:02:53]}  Nc6 {[%clk 0:02:51]} 6. Be3 {[%clk 0:02:50]}  e5 {[%clk 0:02:49]} 7. d5 {[%clk 0:02:48]}  Nd4 {[%clk 0:02:48]} 8. Be2 {[%clk 0:02:45]}  Bxf3 {[%clk 0:02:47]} 9. Bxf3 {[%clk 0:02:41]}  c5 {[%clk 0:02:47]} 10. dxc6 {[%clk 0:02:38]}  bxc6 {[%clk 0:02:46]} 11. O-O {[%clk 0:02:35]}  Ne7 {[%clk 0:02:46]} 12. b4 {[%clk 0:02:31]}  O-O {[%clk 0:02:46]} 13. Rc1 {[%clk 0:02:25]}  Qc7 {[%clk 0:02:44]} 14. a3 {[%clk 0:02:25]}  f5 {[%clk 0:02:41]} 15. Bxd4 {[%clk 0:02:21]}  exd4 {[%clk 0:02:40]} 16. Ne2 {[%clk 0:02:21]}  c5 {[%clk 0:02:23]} 17. exf5 {[%clk 0:02:20]}  Rab8 {[%clk 0:02:23]} 18. Nf4 {[%clk 0:02:13]}  Rxf5 {[%clk 0:02:18]} 19. Ne6 {[%clk 0:02:09]}  Qd7 {[%clk 0:02:18]} 20. Nxg7 {[%clk 0:02:05]}  Kxg7 {[%clk 0:02:17]} 21. Bg4 {[%clk 0:02:04]}  Nc6 {[%clk 0:02:17]} 22. Bxf5 {[%clk 0:02:02]}  Qxf5 {[%clk 0:02:17]} 23. b5 {[%clk 0:02:00]}  Ne5 {[%clk 0:02:17]} 24. h3 {[%clk 0:01:51]}  Rf8 {[%clk 0:02:11]} 25. a4 {[%clk 0:01:46]}  h5 {[%clk 0:01:50]} 26. Qe2 {[%clk 0:01:46]}  Nd3 {[%clk 0:01:45]} 27. Rb1 {[%clk 0:01:36]}  Nf4 {[%clk 0:01:44]} 28. Qe7+ {[%clk 0:01:34]}  Rf7 {[%clk 0:01:44]} 29. Qxd6 {[%clk 0:01:33]}  Qg5 {[%clk 0:01:39]} 30. Qc6 {[%clk 0:01:05]}  Nxh3+ {[%clk 0:01:35]} 31. Kh2 {[%clk 0:01:04]}  Nxf2 {[%clk 0:01:32]} 32. Rbe1 {[%clk 0:00:47]}  Qh4+ {[%clk 0:01:30]} 33. Kg1 {[%clk 0:00:45]}  Qh1# {[%clk 0:01:30]} 0-1


[Site "https://www.chess.com"]